bitfinex/quotes_BTCUSD_20221001
["timestamp","ask_amount","ask_price","bid_price","bid_amount"]
[1664601731133,0.257702,19388.0,19386.0,1.033686]
[1664601731466,0.257702,19388.0,19387.0,0.357705]
[1664601731692,0.78641088,19388.0,19386.0,1.092686]
[1664601731916,0.329702,19388.0,19387.0,0.357705]
[1664601732137,0.78641088,19388.0,19386.0,1.14259271]
[1664601732355,0.329702,19388.0,19387.0,0.05]
[1664601732581,0.329702,19388.0,19386.0,1.14259271]
[1664601733035,0.257702,19388.0,19387.0,0.05]
[1664601733275,0.257702,19388.0,19386.0,1.13359271]
[1664601733722,0.307702,19388.0,19387.0,0.002]
[1664601735060,0.257702,19388.0,19386.0,1.13359271]
[1664601735765,0.329702,19388.0,19386.0,1.14259271]
[1664601736238,0.329702,19388.0,19386.0,1.09259271]
[1664601736457,0.329702,19388.0,19386.0,1.14259271]
[1664601736892,0.257702,19388.0,19386.0,1.13359271]
[1664601737646,0.326702,19388.0,19386.0,1.13959271]
[1664601738388,0.326702,19388.0,19386.0,1.24006251]
[1664601738613,0.326702,19388.0,19386.0,1.31905151]
[1664601738887,0.326702,19388.0,19386.0,1.19006251]
[1664601739115,0.257702,19388.0,19386.0,1.033686]
[1664601739786,0.329702,19388.0,19386.0,1.092686]
[1664601740452,0.329702,19388.0,19386.0,1.042686]
[1664601740887,0.257702,19388.0,19386.0,1.08359271]
[1664601741120,0.357705,19387.0,19386.0,1.08359271]
[1664601741339,0.44519475,19387.0,19386.0,1.08359271]
[1664601741773,0.51719475,19387.0,19386.0,1.04258853]
[1664601742541,0.51219475,19387.0,19386.0,0.52675553]
[1664601742760,0.86989975,19387.0,19386.0,0.52675553]
[1664601743011,0.79789975,19387.0,19386.0,0.51775553]
[1664601743243,0.44019475,19387.0,19386.0,0.51775553]
[1664601743696,0.51119475,19387.0,19386.0,0.88246053]
[1664601743934,0.51119475,19387.0,19386.0,0.52475553]
[1664601744372,0.071,19387.0,19386.0,0.52475553]
[1664601744975,0.29794793,19388.0,19386.0,0.51775553]
[1664601745198,0.29794793,19388.0,19386.0,0.56766224]
[1664601745649,0.257702,19388.0,19386.0,0.56766224]
[1664601745999,0.328702,19388.0,19386.0,0.57466224]
[1664601746271,0.36894793,19388.0,19386.0,0.52475553]
[1664601746493,0.328702,19388.0,19386.0,0.57466224]
[1664601746919,0.36894793,19388.0,19386.0,0.57466224]
[1664601747135,0.328702,19388.0,19386.0,0.56766224]
[1664601747355,0.29794793,19388.0,19386.0,0.56766224]
[1664601747789,0.36894793,19388.0,19386.0,0.57466224]
[1664601748922,0.29794793,19388.0,19386.0,0.56766224]
[1664601749167,0.357705,19387.0,19386.0,0.51775653]
[1664601749306,0.81217064,19387.0,19386.0,0.13089253]
[1664601749523,0.45446564,19387.0,19386.0,0.13089253]
[1664601749773,0.52646564,19387.0,19386.0,0.13989253]
[1664601750208,0.52646564,19387.0,19386.0,0.52675653]
[1664601750653,0.52646564,19387.0,19386.0,0.88446153]
[1664601750876,0.45446564,19387.0,19386.0,0.25984653]
[1664601751091,0.45446564,19387.0,19386.0,0.002]
[1664601751855,3.68974844,19387.0,19386.0,0.011]
[1664601752088,3.27176511,19387.0,19386.0,0.011]
[1664601752328,3.42327382,19387.0,19386.0,0.011]
[1664601752559,3.3724862,19387.0,19386.0,0.011]
[1664601752787,3.8882952,19387.0,19386.0,0.011]
[1664601753022,3.8882952,19387.0,19386.0,0.002]
[1664601753023,3.8162952,19387.0,19386.0,0.002]
[1664601753263,3.89687437,19387.0,19386.0,0.002]
[1664601753789,3.52140873,19387.0,19386.0,0.002]
[1664601754480,3.52201276,19387.0,19386.0,0.002]
[1664601754701,3.31778841,19387.0,19386.0,0.002]
[1664601754958,3.52201369,19387.0,19386.0,0.002]
[1664601755179,3.36243452,19387.0,19386.0,0.002]
[1664601755409,3.05933638,19387.0,19386.0,0.002]
[1664601755858,2.83339001,19387.0,19386.0,0.002]
[1664601756085,2.81323471,19387.0,19386.0,0.002]
[1664601756297,2.85351563,19387.0,19386.0,0.002]
[1664601756473,2.50586101,19387.0,19386.0,0.002]
[1664601756709,2.85351563,19387.0,19386.0,0.002]
[1664601757284,2.77451563,19387.0,19386.0,0.002]
[1664601757746,2.85351563,19387.0,19386.0,0.002]
[1664601758528,2.89381018,19387.0,19386.0,0.002]
[1664601759052,2.81481018,19387.0,19386.0,0.002]
[1664601759267,2.85508421,19387.0,19386.0,0.002]
[1664601759493,2.77450874,19387.0,19386.0,0.002]
[1664601759713,2.81323471,19387.0,19386.0,0.002]
[1664601759933,2.89381018,19387.0,19386.0,0.002]
[1664601760158,2.85350884,19387.0,19386.0,0.002]
[1664601760834,3.28383934,19387.0,19386.0,0.002]
[1664601761066,3.20483934,19387.0,19386.0,0.002]
[1664601761626,3.24514068,19387.0,19386.0,0.002]
[1664601761864,3.56831076,19387.0,19386.0,0.002]
[1664601762076,3.26372051,19387.0,19386.0,0.002]
[1664601762294,3.32412879,19387.0,19386.0,0.002]
[1664601763019,2.81479829,19387.0,19386.0,0.002]
[1664601763220,2.77449335,19387.0,19386.0,0.002]
[1664601763912,2.85349335,19387.0,19386.0,0.002]
[1664601765055,2.77449335,19387.0,19386.0,0.00188249]
[1664601765981,2.85349335,19387.0,19386.0,0.00188249]
[1664601767044,2.77449335,19387.0,19386.0,0.00188249]
[1664601767942,2.85349335,19387.0,19386.0,0.00188249]
[1664601769156,2.82219829,19387.0,19386.0,0.00188249]
[1664601769403,2.74162282,19387.0,19386.0,0.00188249]
[1664601769621,2.82219829,19387.0,19386.0,0.00188249]
[1664601769847,2.82062282,19387.0,19386.0,0.00188249]
[1664601770074,2.86092082,19387.0,19386.0,0.00188249]
[1664601770288,2.82062282,19387.0,19386.0,0.00188249]
[1664601770734,3.42062282,19387.0,19386.0,0.00188249]
[1664601770936,3.94196595,19387.0,19386.0,0.00188249]
[1664601771149,3.86296595,19387.0,19386.0,0.00188249]
[1664601771615,3.26299504,19387.0,19386.0,0.00188249]
[1664601771818,3.58429004,19387.0,19386.0,0.00188249]
[1664601772037,3.94199504,19387.0,19386.0,0.00188249]
[1664601772736,3.50122738,19387.0,19386.0,0.00188249]
[1664601773260,3.42222738,19387.0,19386.0,0.00188249]
[1664601773713,2.78194595,19387.0,19386.0,0.00188249]
[1664601773925,2.86094595,19387.0,19386.0,0.00188249]
[1664601774629,2.51329133,19387.0,19386.0,0.00188249]
[1664601774849,2.86094595,19387.0,19386.0,0.00188249]
[1664601775064,2.78194595,19387.0,19386.0,0.00188249]
[1664601775950,2.90122738,19387.0,19386.0,0.00188249]
[1664601776771,3.42065191,19387.0,19386.0,0.00188249]
[1664601776983,3.50122738,19387.0,19386.0,0.00188249]
[1664601777208,3.42222738,19387.0,19386.0,0.00188249]
[1664601777629,1.18348228,19386.0,19385.0,0.00246672]
[1664601777852,1.80335135,19386.0,19385.0,0.00246672]
[1664601778293,1.44704607,19386.0,19385.0,0.00246672]
[1664601778506,1.38660349,19386.0,19385.0,0.00246672]
[1664601779490,1.83704034,19386.0,19385.0,0.00246672]
[1664601779732,2.19331252,19386.0,19385.0,0.00246672]
[1664601779956,2.27231252,19386.0,19385.0,0.00246672]
[1664601780179,2.61996714,19386.0,19385.0,0.00246672]
[1664601780408,2.68040972,19386.0,19385.0,0.00246672]
[1664601780637,1.82187567,19386.0,19385.0,0.00246672]
[1664601780877,2.16953029,19386.0,19385.0,0.00246672]
[1664601781082,2.19125329,19386.0,19385.0,0.00246672]
[1664601781287,2.11067782,19386.0,19385.0,0.00246672]
[1664601781510,2.79125329,19386.0,19385.0,0.00246672]
[1664601781950,2.27025329,19386.0,19385.0,0.00246672]
[1664601782618,3.11273362,19386.0,19385.0,0.00246672]
[1664601783074,2.73081071,19386.0,19385.0,0.00246672]
[1664601783766,2.79126605,19386.0,19385.0,0.00246672]
[1664601783914,2.87026605,19386.0,19385.0,0.00246672]
[1664601784130,2.51086522,19386.0,19385.0,0.00246672]
[1664601784432,2.27026475,19386.0,19385.0,0.00246672]
[1664601784833,2.27026307,19386.0,19385.0,0.00246672]
[1664601785026,2.19126307,19386.0,19385.0,0.00246672]
[1664601785232,2.13081071,19386.0,19385.0,0.00246672]
[1664601785445,2.43188613,19386.0,19385.0,0.00246672]
[1664601785877,2.43031066,19386.0,19385.0,0.00246672]
[1664601786299,2.51092342,19386.0,19385.0,0.00246672]
[1664601786943,2.95204399,19386.0,19385.0,0.00246672]
[1664601787173,2.87304399,19386.0,19385.0,0.00246672]
[1664601787782,2.95204399,19386.0,19385.0,0.00246672]
[1664601787998,3.47143123,19386.0,19385.0,0.00246672]
[1664601788213,2.95204221,19386.0,19385.0,0.00246672]
[1664601788669,3.47143123,19386.0,19385.0,0.00246672]
[1664601788852,2.87143123,19386.0,19385.0,0.00246672]
[1664601789064,3.39243123,19386.0,19385.0,0.00246672]
[1664601789303,3.29171014,19386.0,19385.0,0.00246672]
[1664601789665,3.29171014,19386.0,19385.0,0.00046672]
[1664601789864,3.37071014,19386.0,19385.0,0.00046672]
[1664601790541,2.77071014,19386.0,19385.0,0.00046672]
[1664601790765,3.37071014,19386.0,19385.0,0.00046672]
[1664601791196,2.69171014,19386.0,19385.0,0.00046672]
[1664601791427,3.29171014,19386.0,19385.0,0.00046672]
[1664601791651,3.34171014,19386.0,19385.0,0.00046672]
[1664601791881,3.45591014,19386.0,19385.0,0.00046672]
[1664601792105,2.49963796,19386.0,19385.0,0.00046672]
[1664601792333,3.09963796,19386.0,19385.0,0.00046672]
[1664601793301,2.57951739,19386.0,19385.0,0.00046672]
[1664601793523,2.7310261,19386.0,19385.0,0.00046672]
[1664601793968,2.8100261,19386.0,19385.0,0.00046672]
[1664601794970,2.24947008,19386.0,19385.0,0.00046672]
[1664601795159,2.17047008,19386.0,19385.0,0.00046672]
[1664601795591,2.77047008,19386.0,19385.0,0.00046672]
[1664601795808,2.84947008,19386.0,19385.0,0.00046672]
[1664601796264,2.69796137,19386.0,19385.0,0.00046672]
[1664601796482,2.24947008,19386.0,19385.0,0.00046672]
[1664601797198,2.77047008,19386.0,19385.0,0.00046672]
[1664601797426,2.9355321,19386.0,19385.0,0.00046672]
[1664601797643,0.59876117,19384.0,19383.0,0.0011]
[1664601797862,1.77675856,19384.0,19383.0,0.0011]
[1664601798074,1.77675856,19384.0,19383.0,0.0061]
[1664601799172,1.8574059,19384.0,19383.0,0.0061]
[1664601799842,1.9364059,19384.0,19383.0,0.0061]
[1664601801281,1.8574059,19384.0,19383.0,0.0061]
[1664601802036,1.9364059,19384.0,19383.0,0.0061]
[1664601802934,2.83780656,19384.0,19383.0,0.0061]
[1664601803163,3.63732026,19384.0,19383.0,0.0061]
[1664601803914,3.62732026,19384.0,19383.0,0.0061]
[1664601804139,3.70632026,19384.0,19383.0,0.0061]
[1664601804587,3.82210522,19384.0,19383.0,0.0061]
[1664601805021,3.94830619,19384.0,19383.0,0.0061]
[1664601805148,3.60232907,19384.0,19383.0,0.0061]
[1664601805811,3.68132907,19384.0,19383.0,0.0061]
[1664601806481,3.68132907,19384.0,19383.0,0.005]
[1664601806699,4.58413407,19384.0,19383.0,0.005]
[1664601807210,4.50513407,19384.0,19383.0,0.005]
[1664601807593,4.06635882,19384.0,19383.0,0.005]
[1664601807829,4.14535882,19384.0,19383.0,0.005]
[1664601808922,4.19535882,19384.0,19383.0,0.005]
[1664601809364,4.11635882,19384.0,19383.0,0.005]
[1664601809584,4.16635882,19384.0,19383.0,0.005]
[1664601809854,4.11635882,19384.0,19383.0,0.005]
[1664601810079,4.19535882,19384.0,19383.0,0.005]
[1664601811232,4.11635882,19384.0,19383.0,0.005]
[1664601811447,4.16635882,19384.0,19383.0,0.005]
[1664601811711,4.11635882,19384.0,19383.0,0.005]
[1664601812145,4.19535882,19384.0,19383.0,0.005]
[1664601813002,3.98421954,19384.0,19383.0,0.005]
[1664601813226,3.75401857,19384.0,19383.0,0.005]
[1664601813440,3.90521954,19384.0,19383.0,0.005]
[1664601813883,3.75401857,19384.0,19383.0,0.005]
[1664601814045,3.83301857,19384.0,19383.0,0.005]
[1664601814281,3.99415785,19384.0,19383.0,0.005]
[1664601814437,3.64650323,19384.0,19383.0,0.005]
[1664601815326,2.52923679,19384.0,19383.0,0.005]
[1664601815590,2.88694179,19384.0,19383.0,0.005]
[1664601815768,2.83072179,19384.0,19383.0,0.005]
[1664601815983,2.82452179,19384.0,19383.0,0.005]
[1664601816203,2.92528991,19384.0,19383.0,0.005]
[1664601816436,2.70230506,19384.0,19383.0,0.005]
[1664601817111,2.97095968,19384.0,19383.0,0.005]
[1664601817546,2.62330506,19384.0,19383.0,0.005]
[1664601817986,2.70230506,19384.0,19383.0,0.005]
[1664601818212,3.04995968,19384.0,19383.0,0.005]
[1664601818429,2.70230506,19384.0,19383.0,0.005]
[1664601819268,2.62330506,19384.0,19383.0,0.005]
[1664601819976,2.70230506,19384.0,19383.0,0.005]
[1664601821320,2.93438046,19384.0,19383.0,0.005]
[1664601821683,3.13631208,19384.0,19383.0,0.005]
[1664601822119,3.21531208,19384.0,19383.0,0.005]
[1664601822331,2.13978646,19384.0,19383.0,0.005]
[1664601822615,2.39672334,19384.0,19383.0,0.005]
[1664601822830,5.48980824,19384.0,19383.0,0.005]
[1664601823191,5.41080824,19384.0,19383.0,0.005]
[1664601823405,5.40340824,19384.0,19383.0,0.005]
[1664601823665,4.97260609,19384.0,19383.0,0.005]
[1664601824032,5.05160609,19384.0,19383.0,0.005]
[1664601824250,5.05161057,19384.0,19383.0,0.005]
[1664601824464,4.97097851,19384.0,19383.0,0.005]
[1664601824680,2.26123647,19384.0,19383.0,0.005]
[1664601825177,2.18223647,19384.0,19383.0,0.005]
[1664601826041,2.26123647,19384.0,19383.0,0.005]
[1664601826501,1.60082373,19384.0,19383.0,0.005]
[1664601826730,1.95852873,19384.0,19383.0,0.005]
[1664601826967,2.05929685,19384.0,19383.0,0.005]
[1664601827170,2.26170581,19384.0,19383.0,0.00492619]
[1664601827460,1.5530919,19384.0,19383.0,0.00492619]
[1664601828178,1.6320919,19384.0,19383.0,0.00492619]
[1664601828666,1.2743869,19384.0,19383.0,0.00492619]
[1664601828883,2.08069709,19384.0,19383.0,0.00492619]
[1664601829335,1.64399209,19384.0,19383.0,0.00492619]
[1664601829561,2.00169709,19384.0,19383.0,0.00492619]
[1664601830006,2.08069709,19384.0,19383.0,0.00492619]
[1664601830315,2.02021792,19384.0,19383.0,0.00492619]
[1664601830539,2.08069439,19384.0,19383.0,0.00492619]
[1664601831034,1.72298939,19384.0,19383.0,0.00492619]
[1664601831268,2.00169439,19384.0,19383.0,0.00492619]
[1664601832204,1.85196139,19384.0,19383.0,0.00492619]
[1664601832421,1.2743842,19384.0,19383.0,0.00492619]
[1664601833303,1.3243562,19384.0,19383.0,0.00492619]
[1664601833974,1.6820612,19384.0,19383.0,0.00492619]
[1664601834197,1.7610612,19384.0,19383.0,0.00492619]
[1664601834888,1.32272108,19384.0,19383.0,0.00492619]
[1664601835088,1.4033562,19384.0,19383.0,0.00492619]
[1664601835316,1.6820612,19384.0,19383.0,0.00492619]
[1664601835559,1.11474908,19384.0,19383.0,0.00492619]
[1664601835783,1.47245408,19384.0,19383.0,0.00492619]
[1664601835989,1.51277367,19384.0,19383.0,0.00492619]
[1664601836138,1.59177367,19384.0,19383.0,0.00492619]
[1664601836364,1.23406867,19384.0,19383.0,0.00492619]
[1664601836579,1.59177367,19384.0,19383.0,0.00492619]
[1664601837403,1.15506867,19384.0,19383.0,0.00492619]
[1664601837822,1.51277367,19384.0,19383.0,0.00492619]
[1664601838142,1.59177367,19384.0,19383.0,0.00492619]
[1664601838374,1.23406867,19384.0,19383.0,0.00492619]
[1664601838594,1.04937367,19384.0,19383.0,0.00492619]
[1664601838814,0.9888972,19384.0,19383.0,0.00492619]
[1664601839031,1.04937367,19384.0,19383.0,0.00492619]
[1664601839453,1.41432738,19384.0,19383.0,0.00492619]
[1664601839593,1.05662238,19384.0,19383.0,0.00492619]
[1664601839820,0.99614591,19384.0,19383.0,0.00492619]
[1664601840053,1.07514591,19384.0,19383.0,0.00492619]
[1664601840496,1.03482632,19384.0,19383.0,0.00492619]
[1664601840911,1.07514591,19384.0,19383.0,0.00492619]
[1664601841724,1.43285091,19384.0,19383.0,0.00492619]
[1664601842014,1.35385091,19384.0,19383.0,0.00492619]
[1664601842235,0.5935601,19384.0,19383.0,0.00492619]
[1664601843409,0.8722651,19384.0,19383.0,0.00492619]
[1664601843628,0.5145601,19384.0,19383.0,0.00492619]
[1664601844072,0.5935601,19384.0,19383.0,0.00492619]
[1664601844329,1.34079943,19384.0,19383.0,0.00492619]
[1664601844562,2.06169233,19384.0,19383.0,0.00492619]
[1664601844788,2.5648804,19384.0,19383.0,0.00492619]
[1664601845017,2.56488773,19384.0,19383.0,0.00492619]
[1664601845265,2.5648884,19384.0,19383.0,0.00492619]
[1664601845572,2.4858884,19384.0,19383.0,0.00492619]
[1664601845672,2.38511228,19384.0,19383.0,0.00492619]
[1664601845896,2.48591139,19384.0,19383.0,0.00492619]
[1664601846122,3.08080039,19384.0,19383.0,0.00492619]
[1664601846368,3.04987625,19384.0,19383.0,0.00492619]
[1664601847516,3.40467188,19384.0,19383.0,0.00492619]
[1664601847746,3.4853027,19384.0,19383.0,0.00492619]
[1664601847966,3.40467188,19384.0,19383.0,0.00492619]
[1664601848189,3.48367188,19384.0,19383.0,0.00492619]
[1664601849330,3.40467188,19384.0,19383.0,0.00492619]
[1664601850243,3.38287277,19384.0,19383.0,0.00492619]
[1664601850609,3.98287277,19384.0,19383.0,0.00492619]
[1664601851017,3.98287277,19384.0,19383.0,0.0048385]
[1664601851255,4.08365214,19384.0,19383.0,0.0048385]
[1664601851377,3.40465214,19384.0,19383.0,0.0048385]
[1664601852038,3.38287277,19384.0,19383.0,0.0048385]
[1664601852474,3.98287277,19384.0,19383.0,0.0048385]
[1664601853433,2.87007714,19384.0,19383.0,0.0048385]
[1664601854116,2.94907714,19384.0,19383.0,0.0048385]
[1664601854360,4.03427714,19384.0,19383.0,0.0048385]
[1664601854586,0.65721057,19383.0,19382.0,0.00143345]
[1664601854808,3.50917905,19383.0,19382.0,0.00143345]
[1664601855021,3.86551192,19383.0,19382.0,0.00143345]
[1664601856173,3.94451192,19383.0,19382.0,0.00143345]
[1664601857816,3.86551192,19383.0,19382.0,0.00143345]
[1664601858044,3.94451192,19383.0,19382.0,0.00143345]
[1664601858288,0.00176051,19381.0,19376.0,0.00318117]
[1664601858514,1.15489736,19377.0,19376.0,0.00318117]
[1664601858750,2.426882,19377.0,19376.0,0.00318117]
[1664601858976,2.59062564,19377.0,19376.0,0.00318117]
[1664601859204,0.6,19376.0,19373.0,0.00248117]
[1664601859435,0.55203191,19375.0,19373.0,0.00248117]
[1664601859665,0.51173144,19374.0,19373.0,0.00248117]
[1664601860138,0.95241884,19374.0,19373.0,0.05448117]
[1664601861362,0.51173144,19374.0,19373.0,0.00748117]
[1664601861621,0.86943644,19374.0,19373.0,0.00748117]
[1664601861831,0.51173144,19374.0,19373.0,0.00748117]
[1664601862066,0.51973144,19374.0,19373.0,0.07248117]
[1664601862293,1.06213144,19374.0,19373.0,0.07248117]
[1664601863181,1.41983644,19374.0,19373.0,0.07248117]
[1664601863427,1.41183644,19374.0,19373.0,0.00748117]
[1664601863641,1.05413144,19374.0,19373.0,0.00748117]
[1664601863871,1.41183644,19374.0,19373.0,0.00748117]
[1664601864099,1.41983644,19374.0,19373.0,0.07248117]
[1664601864325,1.06213144,19374.0,19373.0,0.07248117]
[1664601864794,1.41983644,19374.0,19373.0,0.07248117]
[1664601865240,1.06213144,19374.0,19373.0,0.07248117]
[1664601865492,1.05413144,19374.0,19373.0,0.00748117]
[1664601865718,1.25897077,19374.0,19373.0,0.00748117]
[1664601865978,3.67810732,19374.0,19373.0,0.00748117]
[1664601866203,2.74218318,19374.0,19373.0,0.00748117]
[1664601866429,2.55749408,19374.0,19373.0,0.00748117]
[1664601866662,2.59773867,19374.0,19373.0,0.00748117]
[1664601866889,2.59773854,19374.0,19373.0,0.00748117]
[1664601867128,3.00749408,19374.0,19371.0,0.002]
[1664601867359,1.62370008,19372.0,19371.0,0.002]
[1664601867618,1.98109538,19372.0,19371.0,0.002]
[1664601867842,2.44114602,19372.0,19371.0,0.002]
[1664601868096,2.48314602,19372.0,19371.0,0.002]
[1664601868318,2.16553603,19372.0,19371.0,0.002]
[1664601868639,3.12324103,19372.0,19371.0,0.002]
[1664601868869,2.52324103,19372.0,19371.0,0.002]
[1664601869096,2.66319039,19372.0,19371.0,0.002]
[1664601869362,5.48624784,19372.0,19371.0,0.002]
[1664601869554,5.44600351,19372.0,19371.0,0.002]
[1664601870026,4.84600351,19372.0,19371.0,0.002]
[1664601870260,5.48900351,19372.0,19371.0,0.002]
[1664601870477,4.88900351,19372.0,19371.0,0.002]
[1664601870914,4.37279551,19372.0,19371.0,0.002]
[1664601871416,4.37279551,19372.0,19366.0,0.001]
[1664601871417,0.5424,19362.0,19359.0,0.074]
[1664601871659,0.5424,19362.0,19355.0,0.002]
[1664601871660,0.53943079,19359.0,19355.0,0.002]
[1664601871897,1.07384243,19358.0,19357.0,0.04990671]
[1664601872159,1.07384243,19358.0,19356.0,0.005]
[1664601872160,0.58943079,19357.0,19356.0,0.005]
[1664601872442,1.78147945,19357.0,19356.0,0.005]
[1664601872676,1.78147945,19357.0,19334.0,0.01028714]
[1664601872677,1.33833923,19357.0,19334.0,0.01028714]
[1664601872917,16.93232768,19333.0,19332.0,0.8246931]
[1664601873193,7.22385509,19333.0,19332.0,4.35538496]
[1664601873391,7.22385509,19333.0,19332.0,5.84868071]
[1664601873392,3.14849409,19333.0,19332.0,5.84868071]
[1664601873640,0.09751709,19333.0,19332.0,6.64064943]
[1664601873863,0.152,19342.0,19332.0,6.64064943]
[1664601873864,0.44386198,19343.0,19332.0,6.61193207]
[1664601874095,0.69386198,19353.0,19342.0,0.35]
[1664601874336,0.38367361,19344.0,19343.0,2.20483933]
[1664601874577,1.35208,19350.0,19344.0,0.20505334]
[1664601874578,0.59594198,19349.0,19344.0,0.20505334]
[1664601874803,0.59594198,19349.0,19345.0,0.20483933]
[1664601874804,0.51173144,19348.0,19345.0,0.20483933]
[1664601875036,0.51173144,19348.0,19344.0,0.40989267]
[1664601875265,0.38367361,19347.0,19344.0,0.20505334]
[1664601875493,0.89540505,19347.0,19344.0,0.20505334]
[1664601876406,0.89540505,19347.0,19341.0,0.82731866]
[1664601876407,1.09540505,19347.0,19341.0,0.82731866]
[1664601876646,1.29414095,19347.0,19345.0,0.005]
[1664601876880,1.36153911,19347.0,19345.0,0.005]
[1664601877128,0.95049834,19346.0,19345.0,0.005]
[1664601877366,1.60820334,19346.0,19345.0,0.005]
[1664601877607,2.30206532,19346.0,19345.0,0.005]
[1664601877833,2.21444044,19346.0,19341.0,0.80123933]
[1664601878064,0.81173144,19345.0,19341.0,0.5964]
[1664601878304,0.51173144,19344.0,19342.0,0.005]
[1664601878537,0.41279829,19343.0,19342.0,0.005]
[1664601878774,0.56682473,19343.0,19342.0,0.005]
[1664601879484,2.30946532,19343.0,19342.0,0.005]
[1664601879721,2.05206532,19343.0,19342.0,0.005]
[1664601879971,0.3,19346.0,19342.0,0.005]
[1664601880211,0.51173144,19345.0,19344.0,1.1]
[1664601880452,0.24822948,19347.0,19344.0,1.00640631]
[1664601880706,0.24822948,19347.0,19345.0,0.357705]
[1664601880707,0.81173144,19346.0,19345.0,0.357705]
[1664601880978,0.81173144,19346.0,19345.0,0.055]
[1664601880979,1.12103144,19346.0,19345.0,0.055]
[1664601881210,1.12103144,19346.0,19345.0,0.005]
[1664601881658,1.12103144,19346.0,19342.0,0.29245815]
[1664601881889,1.12103144,19346.0,19343.0,0.407705]
[1664601882123,1.12103144,19346.0,19343.0,0.412705]
[1664601882358,1.12103144,19346.0,19344.0,0.357705]
[1664601882838,1.12103144,19346.0,19343.0,0.255]
[1664601883060,1.12103144,19346.0,19344.0,0.357705]
[1664601883291,1.12103144,19346.0,19344.0,0.407705]
[1664601883529,1.12103144,19346.0,19343.0,0.25]
[1664601883756,1.12103144,19346.0,19345.0,0.005]
[1664601884033,1.57681476,19346.0,19345.0,0.005]
[1664601884482,1.06508332,19346.0,19345.0,0.20983933]
[1664601884752,1.06508332,19346.0,19345.0,0.362705]
[1664601884753,0.45578332,19346.0,19345.0,0.362705]
[1664601884978,0.4429647,19347.0,19345.0,0.412705]
[1664601885217,0.4429647,19347.0,19345.0,0.105]
[1664601885449,0.3,19346.0,19345.0,0.005]
[1664601885684,0.4429647,19346.0,19345.0,0.005]
[1664601885940,0.4429647,19347.0,19345.0,0.005]
[1664601886178,1.37103144,19348.0,19345.0,0.005]
[1664601886424,1.37103144,19348.0,19346.0,0.357705]
[1664601886425,1.12103144,19348.0,19346.0,0.357705]
[1664601886656,0.00256809,19346.0,19345.0,0.075]
[1664601886883,0.00256809,19346.0,19345.0,0.427705]
[1664601887116,0.00256809,19346.0,19345.0,0.07]
[1664601887573,0.25,19347.0,19344.0,0.2303747]
[1664601887807,0.25,19347.0,19344.0,0.2803747]
[1664601888026,0.87103144,19348.0,19345.0,0.005]
[1664601888262,0.357705,19347.0,19345.0,0.005]
[1664601888521,0.87103144,19348.0,19345.0,0.005]
[1664601889001,1.12103144,19348.0,19345.0,0.005]
[1664601889229,0.82103144,19348.0,19345.0,0.20983933]
[1664601889464,0.82103144,19348.0,19345.0,0.005]
[1664601889685,0.357705,19347.0,19345.0,0.005]
[1664601889910,0.25,19347.0,19345.0,0.005]
[1664601890139,1.12095556,19348.0,19345.0,0.005]
[1664601890355,1.12095556,19348.0,19345.0,0.052]
[1664601890597,0.87103144,19348.0,19345.0,0.052]
[1664601891630,0.87103144,19348.0,19345.0,0.005]
[1664601891861,0.357705,19347.0,19345.0,0.005]
[1664601892096,0.87103144,19348.0,19345.0,0.005]
[1664601892318,0.45232096,19347.0,19345.0,0.052]
[1664601892573,0.87103144,19348.0,19345.0,0.052]
[1664601892793,0.45844112,19347.0,19345.0,0.052]
[1664601893020,0.87103144,19348.0,19345.0,0.052]
[1664601893729,0.87103144,19348.0,19345.0,0.005]
[1664601893730,0.357705,19347.0,19345.0,0.005]
[1664601893976,0.334777,19346.0,19345.0,0.005]
[1664601894200,0.05,19346.0,19345.0,0.362705]
[1664601894462,1.25007556,19348.0,19345.0,0.409705]
[1664601894680,1.25007556,19348.0,19345.0,0.052]
[1664601894681,1.00015144,19348.0,19345.0,0.052]
[1664601895459,1.00015144,19348.0,19345.0,0.102]
[1664601895692,1.00015144,19348.0,19345.0,0.005]
[1664601896368,1.00015144,19348.0,19345.0,0.25683933]
[1664601896820,1.00015144,19348.0,19345.0,0.052]
[1664601897267,0.95015144,19348.0,19345.0,0.052]
[1664601897505,0.24390625,19349.0,19347.0,0.05]
[1664601897732,0.73832812,19350.0,19347.0,0.1]
[1664601897733,0.488404,19350.0,19347.0,0.1]
[1664601897953,1.00013544,19350.0,19349.0,0.05]
[1664601898428,1.32705956,19350.0,19347.0,0.02]
[1664601898656,1.32705956,19350.0,19349.0,0.05]
[1664601898657,1.07713544,19350.0,19349.0,0.05]
[1664601898882,1.07713544,19350.0,19347.0,0.02]
[1664601899630,1.00013544,19350.0,19346.0,0.51074102]
[1664601899847,1.00013544,19350.0,19346.0,0.30590169]
[1664601900342,0.565404,19350.0,19346.0,0.53374102]
[1664601900595,0.565404,19350.0,19346.0,0.35812669]
[1664601900814,0.357705,19349.0,19348.0,0.05]
[1664601901053,0.44128432,19349.0,19348.0,0.05]
[1664601901519,0.44128432,19349.0,19348.0,0.56173144]
[1664601901802,0.44128432,19349.0,19348.0,1.56943644]
[1664601902041,0.00268016,19349.0,19348.0,1.61943644]
[1664601902264,0.00268016,19349.0,19348.0,2.00707244]
[1664601902495,0.00268016,19349.0,19348.0,2.04307244]
[1664601902944,0.25276228,19354.0,19349.0,1.4]
[1664601902945,0.43902959,19351.0,19349.0,1.4]
[1664601903184,0.01,19354.0,19350.0,2.26590359]
[1664601903430,0.01,19354.0,19353.0,0.05]
[1664601903674,0.01,19354.0,19353.0,0.457705]
[1664601903921,0.01,19354.0,19353.0,0.507705]
[1664601904386,0.081,19354.0,19353.0,0.515705]
[1664601904860,0.081,19354.0,19353.0,1.75661444]
[1664601905331,0.081,19354.0,19353.0,1.84221444]
[1664601905795,0.01,19354.0,19353.0,1.98052983]
[1664601906031,0.01,19354.0,19353.0,0.93722483]
[1664601906257,0.25992412,19354.0,19353.0,0.78319839]
[1664601906466,0.081,19354.0,19353.0,0.25331539]
[1664601906689,0.081,19354.0,19353.0,0.30331539]
[1664601907007,0.081,19354.0,19353.0,0.66102039]
[1664601907687,0.01,19354.0,19353.0,0.78319839]
[1664601908182,0.01,19354.0,19353.0,1.28992983]
[1664601908407,0.081,19354.0,19353.0,1.89692983]